lending/lending_fUSD_20260206
["ID","MTS","AMOUNT","RATE_DAILY","PERIOD"]
[404663792,1770396648952,-151.0,0.00039726,120]
[404663793,1770396648962,-151.0,0.00039726,2]
[404663794,1770396648971,-225.544,0.00039726,120]
[404663795,1770396648980,-151.0,0.00039726,2]
[404663796,1770396648989,-151.0,0.00039726,2]
[404663797,1770396649001,-151.0,0.00039726,2]
[404663798,1770396649010,-151.0,0.00039726,2]
[404663799,1770396649019,-151.0,0.00039726,2]
[404663800,1770396649028,-151.0,0.00039726,2]
[404663801,1770396649038,-151.0,0.00039726,2]
[404663802,1770396649047,-151.0,0.00039726,2]
[404663803,1770396649056,-151.0,0.00039726,2]
[404663804,1770396649066,-151.0,0.00039726,2]
[404663805,1770396649075,-151.0,0.00039726,2]
[404663806,1770396649084,-151.0,0.00039726,2]
[404663807,1770396649093,-162.560326,0.00039726,2]
[404663808,1770396649102,-151.0,0.00039726,120]
[404663809,1770396649111,-151.0,0.00039726,120]
[404663810,1770396649120,-151.0,0.00039726,120]
[404663811,1770396649129,-151.0,0.00039726,120]
[404663812,1770396649139,-151.0,0.00039726,120]
[404663813,1770396649149,-151.0,0.00039726,120]
[404663814,1770396649159,-151.0,0.00039726,120]
[404663815,1770396649168,-151.0,0.00039726,120]
[404663816,1770396649178,-284.443585,0.00039726,120]
[404663817,1770396649187,-250.0,0.00039734,2]
[404663818,1770396649197,-4334.37,0.00039766,2]
[404663819,1770396649206,-492.6,0.000398,30]
[404663820,1770396649216,-152.0,0.0003981,4]
[404663821,1770396649225,-155.74,0.000399,14]
[404663822,1770396649235,-300.0,0.00039999,10]
[404663823,1770396649244,-13720.80612777,0.0004,4]
[404663824,1770396649256,-487.19072603,0.0004,10]
[404663825,1770396649266,-250.0,0.0004,7]
[404663826,1770396649275,-250.0,0.0004,7]
[404663827,1770396649285,-400.0,0.0004,7]
[404663828,1770396649295,-160.0,0.0004,120]
[404663829,1770396649304,-891.95596475,0.00040269,14]
[404663830,1770396649313,-4073.69111168,0.000403,14]
[404663831,1770396649323,-300.0,0.00040633,10]
[404663832,1770396649335,-200.0,0.00040705,7]
[404663833,1770396649346,-150.0,0.00040734,2]
[404663834,1770396649356,-250.0,0.00041,7]
[404663835,1770396649365,-6909.49,0.00041,2]
[404663836,1770396649378,-6909.49,0.000411,14]
[404663837,1770396649387,-518.0,0.00041207,10]
[404663838,1770396649396,-799.0,0.00041644,120]
[404663839,1770396649406,-500.0,0.000417,120]
[404663840,1770396649416,-500.0,0.000417,120]
[404663841,1770396649425,-500.0,0.000417,120]
[404663842,1770396649435,-500.0,0.000417,120]
[404663843,1770396649444,-500.0,0.000417,120]
[404663844,1770396649454,-500.0,0.000417,120]
[404663845,1770396649463,-500.0,0.000417,120]
[404663846,1770396649472,-500.0,0.000417,120]
[404663847,1770396649482,-500.0,0.000417,120]
[404663848,1770396649491,-500.0,0.000417,120]
[404663849,1770396649502,-500.0,0.000417,120]
[404663850,1770396649512,-500.0,0.000417,120]
[404663851,1770396649521,-500.0,0.000417,120]
[404663852,1770396649531,-500.0,0.000417,120]
[404663853,1770396649540,-500.0,0.000417,120]
[404663854,1770396649549,-500.0,0.000417,120]
[404663855,1770396649559,-737.0,0.000417,120]
[404663856,1770396649568,-500.0,0.000417,120]
[404663857,1770396649577,-500.0,0.000417,120]
[404663858,1770396649586,-500.0,0.000417,120]
[404663859,1770396649596,-500.0,0.000417,120]
[404663860,1770396649606,-500.0,0.000417,120]
[404663861,1770396649615,-500.0,0.000417,120]
[404663862,1770396649624,-500.0,0.000417,120]
[404663863,1770396649633,-500.0,0.000417,120]
[404663864,1770396649643,-500.0,0.000417,120]
[404663865,1770396649652,-500.0,0.000417,120]
[404663866,1770396649661,-500.0,0.000417,120]
[404663867,1770396649670,-500.0,0.000417,120]
[404663868,1770396649680,-500.0,0.000417,120]
[404663869,1770396649690,-500.0,0.000417,120]
[404663870,1770396649700,-500.0,0.000417,120]
[404663871,1770396649709,-500.0,0.000417,120]
[404663872,1770396649718,-500.0,0.000417,120]
[404663873,1770396649727,-500.0,0.000417,120]
[404663874,1770396649737,-500.0,0.000417,120]
[404663875,1770396649748,-500.0,0.000417,120]
[404663876,1770396649758,-500.0,0.000417,120]
[404663877,1770396649767,-500.0,0.000417,120]
[404663878,1770396649777,-500.0,0.000417,120]
[404663879,1770396649786,-500.0,0.000417,120]
[404663880,1770396649795,-500.0,0.000417,120]
[404663881,1770396649804,-500.0,0.000417,120]
[404663882,1770396649813,-500.0,0.000417,120]
[404663883,1770396649823,-500.0,0.000417,120]
[404663884,1770396649832,-500.0,0.000417,120]
[404663885,1770396649841,-500.0,0.000417,120]
[404663886,1770396649851,-500.0,0.000417,120]
[404663887,1770396649860,-648.0,0.000417,120]
[404663888,1770396649869,-500.0,0.000417,120]
[404663889,1770396649878,-500.0,0.000417,120]
[404663890,1770396649887,-500.0,0.000417,120]
[404663891,1770396649896,-500.0,0.000417,120]
[404663892,1770396649905,-500.0,0.000417,120]
[404663893,1770396649915,-500.0,0.000417,120]
[404663894,1770396649924,-500.0,0.000417,120]
[404663895,1770396649934,-500.0,0.000417,120]
[404663896,1770396649943,-500.0,0.000417,120]
[404663897,1770396649952,-500.0,0.000417,120]
[404663898,1770396649962,-500.0,0.000417,120]
[404663899,1770396649972,-500.0,0.000417,120]
[404663900,1770396649981,-500.0,0.000417,120]
[404663901,1770396649990,-500.0,0.000417,120]
[404663902,1770396650002,-500.0,0.000417,120]
[404663903,1770396650011,-500.0,0.000417,120]
[404663904,1770396650021,-909.0,0.000417,120]
[404663905,1770396650030,-500.0,0.000417,120]
[404663906,1770396650039,-500.0,0.000417,120]
[404663907,1770396650048,-500.0,0.000417,120]
[404663908,1770396650058,-500.0,0.000417,120]
[404663909,1770396650067,-500.0,0.000417,120]
[404663910,1770396650076,-500.0,0.000417,120]
[404663911,1770396650085,-500.0,0.000417,120]
[404663912,1770396650095,-500.0,0.000417,120]
[404663913,1770396650104,-500.0,0.000417,120]
[404663914,1770396650113,-500.0,0.000417,120]
[404663915,1770396650122,-500.0,0.000417,120]
[404663916,1770396650131,-500.0,0.000417,120]
[404663917,1770396650141,-500.0,0.000417,120]
[404663918,1770396650150,-500.0,0.000417,120]
[404663919,1770396650160,-500.0,0.000417,120]
[404663920,1770396650170,-500.0,0.000417,120]
[404663921,1770396650179,-500.0,0.000417,120]
[404663922,1770396650188,-500.0,0.000417,120]
[404663923,1770396650198,-500.0,0.000417,120]
[404663924,1770396650207,-500.0,0.000417,120]
[404663925,1770396650217,-500.0,0.000417,120]
[404663926,1770396650227,-500.0,0.000417,120]
[404663927,1770396650236,-500.0,0.000417,120]
[404663928,1770396650246,-500.0,0.000417,120]
[404663929,1770396650257,-500.0,0.000417,120]
[404663930,1770396650267,-500.0,0.000417,120]
[404663931,1770396650277,-500.0,0.000417,120]
[404663932,1770396650287,-500.0,0.000417,120]
[404663933,1770396650297,-500.0,0.000417,120]
[404663934,1770396650306,-500.0,0.000417,120]
[404663935,1770396650316,-500.0,0.000417,120]
[404663936,1770396650325,-500.0,0.000417,120]
[404663937,1770396650338,-500.0,0.000417,120]
[404663938,1770396650348,-500.0,0.000417,120]
[404663939,1770396650357,-500.0,0.000417,120]
[404663940,1770396650367,-500.0,0.000417,120]
[404663941,1770396650378,-500.0,0.000417,120]
[404663942,1770396650387,-500.0,0.000417,120]
[404663943,1770396650398,-500.0,0.000417,120]
[404663944,1770396650408,-500.0,0.000417,120]
[404663945,1770396650417,-500.0,0.000417,120]
[404663946,1770396650426,-500.0,0.000417,120]
[404663947,1770396650435,-500.0,0.000417,120]
[404663948,1770396650444,-500.0,0.000417,120]
[404663949,1770396650453,-500.0,0.000417,120]
[404663950,1770396650463,-500.0,0.000417,120]
[404663951,1770396650472,-500.0,0.000417,120]
[404663952,1770396650481,-500.0,0.000417,120]
[404663953,1770396650490,-500.0,0.000417,120]
[404663954,1770396650501,-500.0,0.000417,120]
[404663955,1770396650510,-500.0,0.000417,120]
[404663956,1770396650519,-500.0,0.000417,120]
[404663957,1770396650528,-500.0,0.000417,120]
[404663958,1770396650537,-500.0,0.000417,120]
[404663959,1770396650547,-500.0,0.000417,120]
[404663960,1770396650556,-500.0,0.000417,120]
[404663961,1770396650565,-500.0,0.000417,120]
[404663962,1770396650574,-500.0,0.000417,120]
[404663963,1770396650583,-500.0,0.000417,120]
[404663964,1770396650593,-500.0,0.000417,120]
[404663965,1770396650602,-500.0,0.000417,120]
[404663966,1770396650611,-500.0,0.000417,120]
[404663967,1770396650621,-500.0,0.000417,120]
[404663968,1770396650630,-500.0,0.000417,120]
[404663969,1770396650639,-500.0,0.000417,120]
[404663970,1770396650648,-500.0,0.000417,120]
[404663971,1770396650657,-500.0,0.000417,120]
[404663972,1770396650666,-500.0,0.000417,120]
[404663973,1770396650675,-500.0,0.000417,120]
[404663974,1770396650685,-500.0,0.000417,120]
[404663975,1770396650695,-500.0,0.000417,120]
[404663976,1770396650704,-500.0,0.000417,120]
[404663977,1770396650713,-500.0,0.000417,120]
[404663978,1770396650723,-500.0,0.000417,120]
[404663979,1770396650732,-500.0,0.000417,120]
[404663980,1770396650741,-500.0,0.000417,120]
[404663981,1770396650753,-841.0,0.000417,120]
[404663982,1770396650762,-500.0,0.000417,120]
[404663983,1770396650771,-500.0,0.000417,120]
[404663984,1770396650780,-500.0,0.000417,120]
[404663985,1770396650790,-500.0,0.000417,120]
[404663986,1770396650799,-500.0,0.000417,120]
[404663987,1770396650808,-500.0,0.000417,120]
[404663988,1770396650817,-500.0,0.000417,120]
[404663989,1770396650827,-500.0,0.000417,120]
[404663990,1770396650836,-500.0,0.000417,120]
[404663991,1770396650845,-500.0,0.000417,120]
[404663992,1770396650854,-500.0,0.000417,120]
[404663993,1770396650864,-500.0,0.000417,120]
[404663994,1770396650873,-500.0,0.000417,120]
[404663995,1770396650884,-500.0,0.000417,120]
[404663996,1770396650893,-500.0,0.000417,120]
[404663997,1770396650903,-500.0,0.000417,120]
[404663998,1770396650912,-500.0,0.000417,120]
[404663999,1770396650922,-500.0,0.000417,120]
[404664000,1770396650932,-500.0,0.000417,120]
[404664001,1770396650942,-500.0,0.000417,120]
[404664002,1770396650951,-500.0,0.000417,120]
[404664003,1770396650962,-500.0,0.000417,120]
[404664004,1770396650977,-500.0,0.000417,120]
[404664005,1770396650987,-500.0,0.000417,120]
[404664006,1770396651000,-500.0,0.000417,120]
[404664007,1770396651012,-500.0,0.000417,120]
[404664008,1770396651021,-500.0,0.000417,120]
[404664009,1770396651030,-500.0,0.000417,120]
[404664010,1770396651040,-500.0,0.000417,120]
[404664011,1770396651050,-500.0,0.000417,120]
[404664012,1770396651059,-500.0,0.000417,120]
[404664013,1770396651069,-500.0,0.000417,120]
[404664014,1770396651079,-500.0,0.000417,120]
[404664015,1770396651088,-500.0,0.000417,120]
[404664016,1770396651097,-500.0,0.000417,120]
[404664017,1770396651107,-500.0,0.000417,120]
[404664018,1770396651116,-500.0,0.000417,120]
[404664019,1770396651125,-500.0,0.000417,120]
[404664020,1770396651134,-500.0,0.000417,120]
[404664021,1770396651144,-500.0,0.000417,120]
[404664022,1770396651153,-500.0,0.000417,120]
[404664023,1770396651163,-500.0,0.000417,120]
[404664024,1770396651178,-500.0,0.000417,120]
[404664025,1770396651188,-500.0,0.000417,120]
[404664026,1770396651198,-500.0,0.000417,120]
[404664027,1770396651207,-500.0,0.000417,120]
[404664028,1770396651217,-500.0,0.000417,120]
[404664029,1770396651227,-500.0,0.000417,120]
[404664030,1770396651236,-631.0,0.000417,120]
[404664031,1770396651246,-10408.0,0.000417,117]
[404664032,1770396651261,-150.0,0.00041734,2]
[404664033,1770396651271,-579.69,0.00041902,120]
[404664034,1770396651280,-492.6,0.00042,30]
[404664035,1770396651290,-160.0,0.00042,120]
[404664036,1770396651301,-4860.0,0.00042,5]
[404664037,1770396651310,-200.0,0.00042052,2]
[404664038,1770396651320,-799.0,0.00042192,120]
[404664039,1770396651330,-150.0,0.00042295,120]
[404664040,1770396651343,-155.74,0.000423,14]
[404664041,1770396651353,-200.0,0.00042429,2]
[404664042,1770396651363,-151.0,0.00042466,120]
[404664043,1770396651372,-151.0,0.00042466,120]
[404664044,1770396651383,-151.0,0.00042466,120]
[404664045,1770396651392,-151.0,0.00042466,120]
[404664046,1770396651402,-151.0,0.00042466,120]
[404664047,1770396651413,-151.0,0.00042466,120]
[404664048,1770396651423,-151.0,0.00042466,120]
[404664049,1770396651432,-151.0,0.00042466,120]
[404664050,1770396651442,-151.0,0.00042466,120]
[404664051,1770396651451,-151.0,0.00042466,120]
[404664052,1770396651460,-151.0,0.00042466,120]
[404664053,1770396651470,-151.0,0.00042466,120]
[404664054,1770396651480,-151.0,0.00042466,120]
[404664055,1770396651489,-151.0,0.00042466,120]
[404664056,1770396651502,-151.0,0.00042466,120]
[404664057,1770396651511,-283.8,0.00042466,120]
[404664058,1770396651521,-150.0,0.00042468,120]
[404664059,1770396651530,-163.0,0.00042493,16]
[404664060,1770396651540,-163.0,0.00042493,16]
[404664061,1770396651549,-839.0,0.00042495,16]
[404664062,1770396651559,-839.0,0.00042496,16]
[404664063,1770396651568,-6909.49,0.000425,14]
[404664064,1770396651578,-500.0,0.0004251,60]
[404664065,1770396651587,-500.0,0.0004251,60]
[404664066,1770396651596,-500.0,0.00042563,60]
[404664067,1770396651605,-150.0,0.00042734,2]
[404664068,1770396651614,-150.0,0.00042735,120]
[404664069,1770396651624,-799.0,0.0004274,120]
[404664070,1770396651634,-161.21910117,0.00042769,120]
[404664071,1770396651643,-151.0,0.00042772,120]
[404664072,1770396651652,-151.0,0.00042772,120]
[404664073,1770396651662,-151.0,0.00042772,120]
[404664074,1770396651671,-60125.0,0.00042772,30]
[404664075,1770396651680,-163.0,0.00042774,16]
[404664076,1770396651690,-163.0,0.00042807,16]
[404664077,1770396651700,-163.0,0.0004281,16]
[404664078,1770396651710,-839.0,0.0004281,16]
[404664079,1770396651720,-163.0,0.00042815,16]
[404664080,1770396651729,-163.0,0.00042815,16]
[404664081,1770396651738,-163.0,0.0004282,16]
[404664082,1770396651747,-518.0,0.00042823,10]
[404664083,1770396651759,-2998.4080897,0.00042828,7]
[404664084,1770396651769,-6909.49,0.000429,2]
[404664085,1770396651778,-150.0,0.00042991,120]
[404664086,1770396651788,-2236.77632259,0.00043,7]
[404664087,1770396651798,-3496.90322118,0.00043,30]
[404664088,1770396651807,-160.0,0.00043,30]
[404664089,1770396651816,-63358.0,0.00043,120]
[404664090,1770396651825,-160.0,0.00043,120]
[404664091,1770396651835,-410.0675799,0.00043038,30]
[404664092,1770396651844,-163.0,0.00043057,16]
[404664093,1770396651854,-500.0,0.00043058,60]
[404664094,1770396651864,-150.0,0.00043071,120]
[404664095,1770396651873,-4561.33466459,0.0004311,2]
[404664096,1770396651883,-8429.19301902,0.0004311,2]
[404664097,1770396651893,-4460.89566662,0.0004311,28]
[404664098,1770396651903,-200.0,0.00043122,2]
[404664099,1770396651912,-163.0,0.00043138,16]
[404664100,1770396651922,-808.0,0.0004314,16]
[404664101,1770396651932,-839.0,0.00043143,16]
[404664102,1770396651942,-163.0,0.00043153,16]
[404664103,1770396651951,-1000.0,0.00043181,120]
[404664104,1770396651961,-2515418.98080744,0.0004321,120]
[404664105,1770396652043,-655.28295906,0.0004321,120]
[404664106,1770396652055,-532.31760081,0.0004321,120]
[404664107,1770396652066,-4232.59999998,0.0004321,120]
[404664108,1770396652281,-2479160.81863271,0.0004321,120]
[404664109,1770396652291,-1567286.45391631,0.0004321,120]
[404664110,1770396652612,-1000.04798855,0.0004321,120]
[404664111,1770396652623,-1016.55000004,0.0004321,120]
[404664112,1770396652634,-871.6875,0.0004321,120]
[404664113,1770396652656,-699.6,0.00010959,2]
[404664114,1770396652688,-187.07969572,0.00010959,2]
[404664115,1770396652700,-2770.05111385,0.00010959,2]
[404664116,1770396652712,-928.06919043,0.00010959,2]
[404664117,1770396652722,-785.44883756,0.0004321,120]
[404664118,1770396652742,-160.0,0.00043,7]
[404664119,1770396652751,-232.54787226,0.0004321,120]
[404664120,1770396652762,-1845.41,0.0004321,120]
[404664121,1770396666842,600.0,0.00033843,120]
[404664122,1770396666995,600.0,0.00031006,120]
[404664123,1770396667170,600.0,0.00033324,120]
[404664124,1770396667330,600.0,0.00033324,120]
[404664125,1770396667456,600.0,0.00033324,120]
[404664126,1770396669789,2500.0,0.00033843,120]
[404664127,1770396669970,467.09094147,0.00031006,120]
[404664129,1770396671131,195.0,0.00033843,120]
[404664130,1770396671280,195.0,0.00031006,120]
[404664131,1770396671462,195.0,0.00033324,120]
[404664132,1770396672278,641.65424881,0.00033843,120]
[404664133,1770396673468,300.0,0.00033843,120]
[404664134,1770396673501,300.0,0.00031006,120]
[404664135,1770396673530,300.0,0.00033324,120]
[404664136,1770396673630,300.0,0.00033324,120]
[404664137,1770396673761,300.0,0.00033324,120]
[404664138,1770396683945,10000.01,9.046e-05,2]
[404664139,1770396683969,10000.01,9.046e-05,2]
[404664140,1770396692691,-10000.01,9.046e-05,2]
[404664141,1770396692856,-3301.6512,9.046e-05,2]
[404664142,1770396721298,5000.01,8.97e-05,2]
[404664143,1770396721333,5000.01,8.97e-05,2]
[404664157,1770396766036,162.4674,8.937e-05,2]
[404664158,1770396775921,155.0,0.00035616,120]
[404664163,1770396795039,999.40429288,0.00044207,120]
[404664168,1770396825271,150.0,8.942e-05,2]
[404664169,1770396825962,150.0,8.942e-05,2]
[404664170,1770396833301,500.0,8.877e-05,2]
[404664184,1770396870714,5000.0,0.00035616,120]
[404664187,1770396905207,1123.0,8.932e-05,2]
[404664201,1770397015327,2914.5426,8.87e-05,2]
[404664202,1770397015354,5000.01,8.87e-05,2]
[404664203,1770397015378,5000.01,8.87e-05,2]
[404664204,1770397015407,900.36,8.87e-05,2]
[404664205,1770397034654,-150.0,8.869e-05,2]
[404664206,1770397034682,-300.0,8.869e-05,2]
[404664209,1770397081658,300.0,8.869e-05,2]
[404664214,1770397141417,300.0,8.869e-05,2]
[404664218,1770397201261,300.0,8.869e-05,2]
[404664219,1770397201328,1200.0,8.869e-05,2]
[404664220,1770397201400,300.0,8.869e-05,2]
[404664221,1770397201562,300.0,8.869e-05,2]
[404664222,1770397202004,300.0,8.869e-05,2]
[404664223,1770397202893,300.0,8.869e-05,2]
[404664224,1770397203103,150.0,8.869e-05,2]
[404664229,1770397261736,300.0,8.869e-05,2]
[404664232,1770397265178,299.16,8.8e-05,2]
[404664234,1770397287027,5950.85,8.86e-05,2]
[404664235,1770397287051,10000.01,8.86e-05,2]
[404664236,1770397287077,1461.24570975,8.86e-05,2]
[404664237,1770397293148,2532.254,8.692e-05,2]
[404664238,1770397293253,216.702,8.692e-05,2]
[404664239,1770397297476,150.0,8.842e-05,2]
[404664240,1770397297807,150.0,8.842e-05,2]
[404664242,1770397321466,300.0,8.869e-05,2]
[404664243,1770397322195,500.0,8.77e-05,2]
[404664244,1770397325014,-3177.212372,8.87e-05,2]
[404664245,1770397328730,8900.01,8.77e-05,2]
[404664246,1770397328759,10000.01,8.77e-05,2]
[404664247,1770397328784,10000.01,8.77e-05,2]
[404664248,1770397328814,10000.01,8.77e-05,2]
[404664249,1770397328841,10000.01,8.77e-05,2]
[404664251,1770397331029,-5000.01,8.77e-05,2]
[404664253,1770397343379,1107.43995183,0.00044181,120]
[404664254,1770397349313,3144.92668773,8.769e-05,2]
[404664256,1770397373076,-200.0,8.769e-05,2]
[404664257,1770397373928,-200.0,8.769e-05,2]
[404664258,1770397374736,-200.0,8.769e-05,2]
[404664260,1770397375642,-200.0,8.769e-05,2]
[404664261,1770397378731,2378.788816,8.725e-05,2]
[404664262,1770397382974,300.0,8.768e-05,2]
[404664263,1770397384163,466.13787173,8.67e-05,2]
[404664264,1770397384185,2436.55069835,8.67e-05,2]
[404664270,1770397445403,276.0926,8.67e-05,2]
[404664272,1770397474219,432.28338938,8.67e-05,2]
[404664273,1770397474241,67.71661062,8.67e-05,2]
[404664275,1770397504277,-300.0,8.768e-05,2]
[404664276,1770397504307,-1200.0,8.768e-05,2]
[404664277,1770397504355,-2000.01,8.769e-05,2]
[404664278,1770397504531,-5000.01,8.769e-05,2]
[404664279,1770397504656,-5000.01,8.769e-05,2]
[404664280,1770397504834,-5000.01,8.769e-05,2]
[404664281,1770397504989,-5000.01,8.769e-05,2]
[404664282,1770397505095,-5000.01,8.769e-05,2]
[404664283,1770397505211,-5000.01,8.769e-05,2]
[404664284,1770397505368,-5000.01,8.769e-05,2]
[404664285,1770397505487,-2231.96285631,8.769e-05,2]
[404664286,1770397505514,-536.08428738,8.769e-05,2]
[404664287,1770397505618,-150.0,8.769e-05,2]
[404664288,1770397505653,-212.69209351,8.769e-05,2]
[404664289,1770397505681,-1157.3444581,8.769e-05,2]
[404664290,1770397505714,-267.59807108,8.769e-05,2]
[404664291,1770397505743,-212.69209349,8.77e-05,2]
[404664292,1770397505840,-999.35656764,8.77e-05,2]
[404664293,1770397507283,-5000.01,8.77e-05,2]
[404664294,1770397510270,-5000.01,8.77e-05,2]
[404664295,1770397510381,-5000.01,8.77e-05,2]
[404664296,1770397510514,-5000.01,8.77e-05,2]
[404664297,1770397510634,-5000.01,8.77e-05,2]
[404664298,1770397510754,-5000.01,8.77e-05,2]
[404664299,1770397510927,-5000.01,8.77e-05,2]
[404664300,1770397511010,229.40616332,8.742e-05,2]
[404664301,1770397511047,-5000.01,8.77e-05,2]
[404664302,1770397511186,-5000.01,8.77e-05,2]
[404664303,1770397511335,-5000.01,8.77e-05,2]
[404664305,1770397526110,5613.66,8.665e-05,2]
[404664307,1770397548119,200.0,0.0003,120]
[404664309,1770397561787,259.0,8.769e-05,2]
[404664310,1770397562067,150.0,8.769e-05,2]
[404664311,1770397562759,300.0,8.769e-05,2]
[404664312,1770397564344,3190.11042138,8.769e-05,2]
[404664313,1770397564376,487.23957862,8.769e-05,2]
[404664314,1770397564400,1322.66,8.769e-05,2]
[404664315,1770397564579,1154.41270684,8.769e-05,2]
[404664316,1770397572848,6166.879131,8.725e-05,2]
[404664319,1770397621286,300.0,8.769e-05,2]
[404664322,1770397635964,500.0,8.67e-05,2]
[404664324,1770397657187,556.05816216,8.67e-05,2]
[404664325,1770397657214,10000.01,8.67e-05,2]
[404664326,1770397657239,10000.01,8.67e-05,2]
[404664327,1770397657264,10000.01,8.67e-05,2]
[404664328,1770397657289,3077.21007711,8.67e-05,2]
[404664329,1770397657314,3144.92668773,8.67e-05,2]
[404664330,1770397657341,3144.92668773,8.67e-05,2]
[404664331,1770397657364,3144.92668773,8.67e-05,2]
[404664332,1770397657388,3144.92668773,8.67e-05,2]
[404664333,1770397657412,3144.92668773,8.67e-05,2]
[404664334,1770397657437,3144.92668773,8.67e-05,2]
[404664336,1770397687677,5392.404402,7.945e-05,2]
[404664338,1770397707935,577.94638869,8.57e-05,2]
[404664339,1770397713581,500.0,8.669e-05,2]
[404664340,1770397713758,170.45151882,8.669e-05,2]
[404664341,1770397713795,541.59305592,8.669e-05,2]
[404664342,1770397716053,209.50933815,8.669e-05,2]
[404664343,1770397716097,500.0,8.669e-05,2]
[404664344,1770397716133,500.0,8.669e-05,2]
[404664345,1770397716172,556.61996108,8.669e-05,2]
[404664346,1770397716210,500.0,8.669e-05,2]
[404664347,1770397716248,500.0,8.669e-05,2]
[404664348,1770397716291,51.48533534,8.669e-05,2]
[404664349,1770397716314,448.51466466,8.669e-05,2]
[404664350,1770397716347,500.0,8.669e-05,2]
[404664351,1770397716388,500.0,8.669e-05,2]
[404664352,1770397716432,500.0,8.669e-05,2]
[404664353,1770397716466,500.0,8.669e-05,2]
[404664354,1770397716499,500.0,8.669e-05,2]
[404664355,1770397716532,500.0,8.669e-05,2]
[404664356,1770397716565,500.0,8.669e-05,2]
[404664357,1770397716599,500.0,8.669e-05,2]
[404664358,1770397716638,500.0,8.669e-05,2]
[404664359,1770397716681,500.0,8.669e-05,2]
[404664362,1770397741606,300.0,8.669e-05,2]
[404664363,1770397742140,150.0,8.669e-05,2]
[404664364,1770397742751,300.0,8.669e-05,2]
[404664365,1770397749673,299.16,8.6e-05,2]
[404664366,1770397760136,-5187.900088,8.67e-05,2]
[404664367,1770397760377,151.0,8.667e-05,2]
[404664368,1770397760861,151.0,8.667e-05,2]
[404664369,1770397761266,151.0,8.667e-05,2]
[404664371,1770397766773,1337.759484,8.626e-05,2]
[404664387,1770397772000,1711.57585134,8.661e-05,2]
[404664388,1770397772027,1070.85695029,8.661e-05,2]
[404664422,1770397801190,1200.0,8.669e-05,2]
[404664424,1770397813856,7490.89,8.359e-05,2]
[404664425,1770397819281,238.26304971,8.359e-05,2]
[404664426,1770397819306,532.48695029,8.359e-05,2]
[404664435,1770397832096,-18292.11207238,8.67e-05,2]
[404664437,1770397832149,-1654.16230367,8.67e-05,2]
[404664438,1770397832161,-1354.03563418,8.67e-05,2]
[404664439,1770397832172,-252.2844,8.67e-05,2]
[404664440,1770397832184,-1372.97586918,8.67e-05,2]